[Event "22nd ETCC Women 2019"]
[Site "Batumi"]
[Date "2019.10.26"]
[Round "3.1"]
[White "Nazarova, Anastasia"]
[Black "Rapport, Jovana"]
[Result "0-1"]
[ECO "B13"]
[WhiteElo "2147"]
[BlackElo "2379"]
[Annotator "NA"]
[PlyCount "108"]
[EventDate "2019.10.24"]
[EventType "team-tourn"]
[EventCountry "GEO"]
[SourceTitle "playchess.com"]
[Source "ChessBase"]
[SourceQuality "1"]
[WhiteTeam "Finland"]
[BlackTeam "Serbia"]
[WhiteTeamCountry "FIN"]
[BlackTeamCountry "SRB"]
[TimeControl "40/5400+30:1800+30"]

1. e4 {[%emt 0:00:00]} c6 {[%emt 0:00:00]} 2. d4 {[%emt 0:00:00]} d5 {[%emt 0:00:00]} 3. exd5 {[%emt 0:00:00]} cxd5 {[%emt 0:00:00]} 4. Bd3 {[%emt 0:00:00]} Nf6 {[%emt 0:00:12]} 5. c3 {[%emt 0:00:02]} Bg4 {[%emt 0:00:30]} 6. Qb3 {[%emt 0:01:31]} Qc7 {[%emt 0:03:06]} 7. h3 {[%emt 0:07:15]} Bh5 {[%emt 0:00:17]} 8. g4 {[%emt 0:05:04]} Bg6 {[%emt 0:00:09]} 9. Bxg6 {[%emt 0:00:13]} hxg6 {[%emt 0:00:04]} 10. g5 {[%emt 0:00:12]} Nfd7 {[%emt 0:00:11]} 11. Qxd5 {[%emt 0:00:40]} e5 {[%emt 0:00:11]} 12. Be3 {[%emt 0:09:42]} Nc6 {[%emt 0:09:49]} 13. dxe5 {[%emt 0:33:33]} Ncxe5 {[%emt 0:08:50]} 14. Nd2 {[%emt 0:06:11]} O-O-O {[%emt 0:00:25]} 15. O-O-O {[%emt 0:04:00]} Nc5 {[%emt 0:04:39]} 16. Qg2 {[%emt 0:02:17]} Ncd3+ {[%emt 0:00:48]} 17. Kb1 {[%emt 0:01:07]} Ba3 {[%emt 0:09:32]} 18. Ngf3 {[%emt 0:07:53]} Nxb2 {[%emt 0:03:59]} 19. Nxe5 {[%emt 0:01:33]} Rh4 {[%emt 0:18:11]} 20. Bd4 {[%emt 0:07:33]} f6 {[%emt 0:08:51]} 21. Nxg6 {[%emt 0:05:29]} Nxd1 {[%emt 0:06:53]} 22. Rxd1 {[%emt 0:00:07]} Rhxd4 {[%emt 0:07:40]} 23. cxd4 {[%emt 0:00:11]} Rxd4 {[%emt 0:00:15]} 24. Qf1 {[%emt 0:06:29]} Qd7 {[%emt 0:04:00]} 25. Qe2 {[%emt 0:00:36]} Qf5+ {[%emt 0:00:26]} 26. Ka1 {[%emt 0:00:07]} Qc2 {[%emt 0:06:19]} 27. Qe6+ {[%emt 0:01:02]} Rd7 {[%emt 0:02:54]} 28. Qb3 {[%emt 0:00:24]} Bb2+ {[%emt 0:01:38]} 29. Qxb2 {[%emt 0:00:03]} Qxd1+ {[%emt 0:00:02]} 30. Nb1 {[%emt 0:00:01]} Rd6 {[%emt 0:02:49]} 31. Ne7+ {[%emt 0:01:09]} Kb8 {[%emt 0:00:01]} 32. Qc3 {[%emt 0:00:57]} Qd4 {[%emt 0:02:35]} 33. gxf6 {[%emt 0:00:29]} Qxf6 {[%emt 0:00:39]} 34. Qxf6 {[%emt 0:00:35]} Rxf6 {[%emt 0:00:03]} 35. h4 {[%emt 0:00:30]} Rxf2 {[%emt 0:00:05]} 36. Nc3 {[%emt 0:00:24]} Rf4 {[%emt 0:00:02]} 37. Ng6 {[%emt 0:00:37]} Rg4 {[%emt 0:00:09]} 38. h5 {[%emt 0:00:07]} Kc7 {[%emt 0:01:54]} 39. Nd5+ {[%emt 0:00:47]} Kd6 {[%emt 0:00:44]} 40. Ndf4 {[%emt 0:00:00]} b5 {[%emt 0:00:00]} 41. Kb2 {[%emt 0:03:31]} Rg3 {[%emt 0:02:10]} 42. a3 {[%emt 0:12:00]} a5 {[%emt 0:01:00]} 43. Ka2 {[%emt 0:00:17]} Rf3 {[%emt 0:09:20]} 44. Kb2 {[%emt 0:00:17]} a4 {[%emt 0:01:53]} 45. Ka2 {[%emt 0:00:07]} Rf2+ {[%emt 0:00:51]} 46. Ka1 {[%emt 0:01:43]} Rh2 {[%emt 0:00:08]} 47. Kb1 {[%emt 0:00:07]} Kc5 {[%emt 0:02:11]} 48. Ne6+ {[%emt 0:02:57]} Kc4 {[%emt 0:00:44]} 49. Nxg7 {[%emt 0:00:18]} Kb3 {[%emt 0:01:57]} 50. Kc1 {[%emt 0:00:05]} b4 {[%emt 0:02:43]} 51. Ne6 {[%emt 0:08:08]} Kxa3 {[%emt 0:02:26]} 52. Ne5 {[%emt 0:02:37]} Rxh5 {[%emt 0:01:55]} 53. Nc4+ {[%emt 0:00:22]} Ka2 {[%emt 0:00:23]} 54. Nd2 {[%emt 0:01:52]} b3 {[%emt 0:03:02]} 0-1

[Event "22nd ETCC Women 2019"]
[Site "Batumi"]
[Date "2019.10.26"]
[Round "3.2"]
[White "Lagno, Kateryna"]
[Black "Garcia Martin, Marta"]
[Result "1/2-1/2"]
[ECO "C97"]
[WhiteElo "2549"]
[BlackElo "2305"]
[Annotator "ChessBase"]
[PlyCount "133"]
[EventDate "2019.10.24"]
[EventType "team-tourn"]
[EventCountry "GEO"]
[SourceTitle "playchess.com"]
[Source "ChessBase"]
[SourceQuality "1"]
[WhiteTeam "Russia"]
[BlackTeam "Spain"]
[WhiteTeamCountry "RUS"]
[BlackTeamCountry "ESP"]
[TimeControl "40/5400+30:1800+30"]

1. e4 {[%emt 0:00:00]} e5 {[%emt 0:00:00]} 2. Nf3 {[%emt 0:00:00]} Nc6 {[%emt 0:00:00]} 3. Bb5 {[%emt 0:00:00]} a6 {[%emt 0:00:02]} 4. Ba4 {[%emt 0:00:00]} Nf6 {[%emt 0:00:25]} 5. O-O {[%emt 0:00:05]} Be7 {[%emt 0:00:45]} 6. Re1 {[%emt 0:00:16]} b5 {[%emt 0:00:33]} 7. Bb3 {[%emt 0:00:04]} d6 {[%emt 0:00:14]} 8. c3 {[%emt 0:00:07]} O-O {[%emt 0:00:07]} 9. h3 {[%emt 0:00:06]} Na5 {[%emt 0:05:26]} 10. Bc2 {[%emt 0:00:25]} c5 {[%emt 0:00:05]} 11. d4 {[%emt 0:00:15]} Qc7 {[%emt 0:00:08]} 12. Nbd2 {[%emt 0:00:31]} Bd7 {[%emt 0:00:51]} 13. Nf1 {[%emt 0:00:51]} Nc4 {[%emt 0:01:17]} 14. b3 {[%emt 0:05:40]} Nb6 {[%emt 0:00:12]} 15. Ne3 {[%emt 0:04:03]} c4 {[%emt 0:07:50]} 16. bxc4 {[%emt 0:05:47]} Nxc4 {[%emt 0:01:27]} 17. Nxc4 {[%emt 0:00:29]} bxc4 {[%emt 0:00:34]} 18. Ba3 {[%emt 0:03:25]} Rfe8 {[%emt 0:10:14]} 19. d5 {[%emt 0:12:55]} Bf8 {[%emt 0:20:57]} 20. Nd2 {[%emt 0:01:07]} Rec8 {[%emt 0:07:26]} 21. Rb1 {[%emt 0:04:11]} Rab8 {[%emt 0:07:31]} 22. Rxb8 {[%emt 0:02:06]} Rxb8 {[%emt 0:00:21]} 23. Bb4 {[%emt 0:15:40]} g6 {[%emt 0:05:56]} 24. Qe2 {[%emt 0:05:00]} Rc8 {[%emt 0:06:10]} 25. Kh2 {[%emt 0:00:26]} Bb5 {[%emt 0:12:58]} 26. Rb1 {[%emt 0:03:34]} Bh6 {[%emt 0:02:04]} 27. a4 {[%emt 0:01:19]} Be8 {[%emt 0:00:30]} 28. Ba3 {[%emt 0:04:22]} a5 {[%emt 0:01:38]} 29. Nf1 {[%emt 0:02:32]} Nd7 {[%emt 0:01:50]} 30. Ne3 {[%emt 0:02:31]} Nb6 {[%emt 0:00:40]} 31. Ng4 {[%emt 0:09:53]} Bg5 {[%emt 0:01:37]} 32. h4 {[%emt 0:06:49]} Bxh4 {[%emt 0:01:23]} 33. Nh6+ {[%emt 0:00:49]} Kh8 {[%emt 0:02:26]} 34. Qg4 {[%emt 0:00:23]} Bxf2 {[%emt 0:00:24]} 35. Qg5 {[%emt 0:07:29]} Nd7 {[%emt 0:00:54]} 36. Qe7 {[%emt 0:01:15]} Qd8 {[%emt 0:01:37]} 37. Bxd6 {[%emt 0:00:13]} Qxe7 {[%emt 0:01:02]} 38. Bxe7 {[%emt 0:00:02]} Bc5 {[%emt 0:00:45]} 39. Bxc5 {[%emt 0:00:26]} Nxc5 {[%emt 0:00:21]} 40. Ng4 {[%emt 0:00:00]} Nxe4 {[%emt 0:00:00]} 41. Bxe4 {[%emt 0:01:10]} f5 {[%emt 0:00:49]} 42. Nf6 {[%emt 0:01:54]} Bf7 {[%emt 0:03:52]} 43. Bc2 {[%emt 0:03:07]} Rd8 {[%emt 0:15:39]} 44. Rb7 {[%emt 0:00:26]} Kg7 {[%emt 0:00:06]} 45. Nd7 {[%emt 0:00:18]} Bxd5 {[%emt 0:00:39]} 46. Ra7 {[%emt 0:07:05]} Kh6 {[%emt 0:01:05]} 47. Nxe5 {[%emt 0:05:09]} Re8 {[%emt 0:01:05]} 48. Rxa5 {[%emt 0:00:18]} Rxe5 {[%emt 0:04:44]} 49. Bd1 {[%emt 0:00:05]} Re3 {[%emt 0:00:09]} 50. Rxd5 {[%emt 0:00:07]} Rxc3 {[%emt 0:00:03]} 51. Rc5 {[%emt 0:01:09]} Rc1 {[%emt 0:00:22]} 52. Be2 {[%emt 0:00:50]} c3 {[%emt 0:00:07]} 53. a5 {[%emt 0:00:57]} Ra1 {[%emt 0:01:26]} 54. a6 {[%emt 0:01:19]} Ra3 {[%emt 0:00:04]} 55. Rc7 {[%emt 0:04:44]} Kg5 {[%emt 0:01:26]} 56. Rxh7 {[%emt 0:01:28]} Kf4 {[%emt 0:00:48]} 57. Rc7 {[%emt 0:06:15]} Ke3 {[%emt 0:01:05]} 58. Bf3 {[%emt 0:00:31]} Rxa6 {[%emt 0:01:50]} 59. Rxc3+ {[%emt 0:00:07]} Kf4 {[%emt 0:04:39]} 60. Rc6 {[%emt 0:00:56]} Rxc6 {[%emt 0:00:10]} 61. Bxc6 {[%emt 0:00:02]} g5 {[%emt 0:01:02]} 62. Kh3 {[%emt 0:00:40]} Ke3 {[%emt 0:00:36]} 63. Kg3 {[%emt 0:00:27]} Kd4 {[%emt 0:00:08]} 64. Kf3 {[%emt 0:00:30]} Ke5 {[%emt 0:00:13]} 65. Ke3 {[%emt 0:00:23]} Kd6 {[%emt 0:00:56]} 66. Bb7 {[%emt 0:00:24]} Ke5 {[%emt 0:00:04]} 67. Bc8 {[%emt 0:00:25]} 1/2-1/2

[Event "22nd ETCC Women 2019"]
[Site "Batumi"]
[Date "2019.10.26"]
[Round "3.2"]
[White "Eric, Jovana"]
[Black "Puuska, Heini"]
[Result "1-0"]
[ECO "B10"]
[WhiteElo "2285"]
[BlackElo "1992"]
[Annotator "NA"]
[PlyCount "55"]
[EventDate "2019.10.24"]
[EventType "team-tourn"]
[EventCountry "GEO"]
[SourceTitle "playchess.com"]
[Source "ChessBase"]
[SourceQuality "1"]
[WhiteTeam "Serbia"]
[BlackTeam "Finland"]
[WhiteTeamCountry "SRB"]
[BlackTeamCountry "FIN"]
[TimeControl "40/5400+30:1800+30"]

1. e4 {[%emt 0:00:00]} c6 {[%emt 0:00:00]} 2. Nf3 {[%emt 0:00:00]} d5 {[%emt 0:00:08]} 3. exd5 {[%emt 0:00:00]} cxd5 {[%emt 0:00:33]} 4. Ne5 {[%emt 0:00:11]} Nf6 {[%emt 0:04:45]} 5. d4 {[%emt 0:01:01]} g6 {[%emt 0:02:38]} 6. h4 {[%emt 0:02:57]} Nbd7 {[%emt 0:06:53]} 7. Nc3 {[%emt 0:05:55]} Ne4 {[%emt 0:13:23]} 8. Bb5 {[%emt 0:08:40]} Nxc3 {[%emt 0:05:52]} 9. bxc3 {[%emt 0:00:33]} Bg7 {[%emt 0:08:28]} 10. Qf3 {[%emt 0:12:31]} Bxe5 {[%emt 0:05:22]} 11. dxe5 {[%emt 0:00:05]} a6 {[%emt 0:05:31]} 12. Ba4 {[%emt 0:04:03]} Qa5 {[%emt 0:06:32]} 13. Bb3 {[%emt 0:04:42]} Nxe5 {[%emt 0:05:47]} 14. Qg3 {[%emt 0:00:06]} Nc4 {[%emt 0:03:53]} 15. O-O {[%emt 0:02:43]} Bf5 {[%emt 0:02:21]} 16. Re1 {[%emt 0:01:49]} e6 {[%emt 0:02:46]} 17. Bg5 {[%emt 0:01:21]} Rc8 {[%emt 0:02:33]} 18. Bf6 {[%emt 0:04:20]} Rg8 {[%emt 0:01:49]} 19. Rad1 {[%emt 0:01:23]} Kd7 {[%emt 0:06:18]} 20. Qf4 {[%emt 0:07:02]} g5 {[%emt 0:05:15]} 21. hxg5 {[%emt 0:01:06]} Qc5 {[%emt 0:02:45]} 22. Rd4 {[%emt 0:07:56]} Qd6 {[%emt 0:02:11]} 23. Qf3 {[%emt 0:01:34]} Nb6 {[%emt 0:02:06]} 24. c4 {[%emt 0:02:53]} Rc5 {[%emt 0:01:55]} 25. cxd5 {[%emt 0:00:42]} Nxd5 {[%emt 0:00:19]} 26. Bxd5 {[%emt 0:00:55]} Rxd5 {[%emt 0:02:06]} 27. Rxd5 {[%emt 0:00:06]} Qxd5 {[%emt 0:00:25]} 28. Rd1 {[%emt 0:00:04]} 1-0

[Event "22nd ETCC Women 2019"]
[Site "Batumi"]
[Date "2019.10.26"]
[Round "3.3"]
[White "Matnadze, Ana"]
[Black "Girya, Olga"]
[Result "0-1"]
[ECO "A06"]
[WhiteElo "2383"]
[BlackElo "2476"]
[Annotator "ChessBase"]
[PlyCount "120"]
[EventDate "2019.10.24"]
[EventType "team-tourn"]
[EventCountry "GEO"]
[SourceTitle "playchess.com"]
[Source "ChessBase"]
[SourceQuality "1"]
[WhiteTeam "Spain"]
[BlackTeam "Russia"]
[WhiteTeamCountry "ESP"]
[BlackTeamCountry "RUS"]
[TimeControl "40/5400+30:1800+30"]

1. Nf3 {[%emt 0:00:00]} d5 {[%emt 0:00:00]} 2. b3 {[%emt 0:00:00]} Bg4 {[%emt 0:02:04]} 3. Bb2 {[%emt 0:00:24]} Nf6 {[%emt 0:01:59]} 4. g3 {[%emt 0:00:25]} Nbd7 {[%emt 0:01:53]} 5. Bg2 {[%emt 0:00:58]} e6 {[%emt 0:03:04]} 6. O-O {[%emt 0:00:28]} c6 {[%emt 0:00:29]} 7. d3 {[%emt 0:00:51]} Bd6 {[%emt 0:01:39]} 8. Nbd2 {[%emt 0:01:39]} O-O {[%emt 0:00:16]} 9. h3 {[%emt 0:05:21]} Bh5 {[%emt 0:01:41]} 10. a3 {[%emt 0:02:05]} a5 {[%emt 0:02:31]} 11. e4 {[%emt 0:04:22]} e5 {[%emt 0:03:17]} 12. Re1 {[%emt 0:10:26]} Re8 {[%emt 0:00:39]} 13. Qc1 {[%emt 0:05:46]} Qb6 {[%emt 0:14:19]} 14. Re2 {[%emt 0:20:26]} Rad8 {[%emt 0:02:41]} 15. Qe1 {[%emt 0:01:44]} Qc7 {[%emt 0:06:25]} 16. Nf1 {[%emt 0:06:59]} dxe4 {[%emt 0:03:41]} 17. dxe4 {[%emt 0:03:18]} Nc5 {[%emt 0:00:04]} 18. Ne3 {[%emt 0:07:46]} b5 {[%emt 0:26:08]} 19. Nf5 {[%emt 0:06:23]} Bf8 {[%emt 0:00:34]} 20. g4 {[%emt 0:01:34]} Bg6 {[%emt 0:01:31]} 21. Bc3 {[%emt 0:02:02]} Ra8 {[%emt 0:00:42]} 22. Rd1 {[%emt 0:03:26]} Nb7 {[%emt 0:09:46]} 23. Bb2 {[%emt 0:01:19]} Rad8 {[%emt 0:02:56]} 24. Rxd8 {[%emt 0:00:38]} Nxd8 {[%emt 0:00:09]} 25. Rd2 {[%emt 0:05:38]} Nb7 {[%emt 0:00:43]} 26. Nh2 {[%emt 0:03:31]} Nc5 {[%emt 0:02:49]} 27. h4 {[%emt 0:02:18]} h5 {[%emt 0:02:47]} 28. g5 {[%emt 0:00:12]} Nfxe4 {[%emt 0:01:43]} 29. Bxe4 {[%emt 0:01:23]} Nxe4 {[%emt 0:00:04]} 30. Qxe4 {[%emt 0:00:07]} Qc8 {[%emt 0:00:11]} 31. Nh6+ {[%emt 0:01:42]} gxh6 {[%emt 0:00:06]} 32. Qe3 {[%emt 0:00:17]} hxg5 {[%emt 0:01:00]} 33. hxg5 {[%emt 0:00:28]} Bg7 {[%emt 0:02:49]} 34. Bc3 {[%emt 0:01:01]} a4 {[%emt 0:01:22]} 35. Qg3 {[%emt 0:01:03]} axb3 {[%emt 0:01:22]} 36. cxb3 {[%emt 0:00:01]} Qf5 {[%emt 0:00:22]} 37. Nf1 {[%emt 0:00:21]} Qb1 {[%emt 0:01:06]} 38. Bb2 {[%emt 0:01:55]} c5 {[%emt 0:01:46]} 39. Qc3 {[%emt 0:00:12]} Qf5 {[%emt 0:01:27]} 40. Qe3 {[%emt 0:00:00]} c4 {[%emt 0:00:00]} 41. Ng3 {[%emt 0:14:09]} Qg4 {[%emt 0:04:46]} 42. Kh2 {[%emt 0:08:06]} h4 {[%emt 0:00:28]} 43. Ne2 {[%emt 0:00:15]} Be4 {[%emt 0:00:51]} 44. Qh3 {[%emt 0:02:40]} Qxg5 {[%emt 0:00:54]} 45. Rd1 {[%emt 0:01:45]} Bf5 {[%emt 0:08:04]} 46. Qc3 {[%emt 0:01:00]} Qg4 {[%emt 0:00:47]} 47. Qe3 {[%emt 0:01:13]} Qe4 {[%emt 0:08:18]} 48. bxc4 {[%emt 0:04:34]} Qxe3 {[%emt 0:01:14]} 49. fxe3 {[%emt 0:00:02]} Bg4 {[%emt 0:00:30]} 50. Re1 {[%emt 0:00:50]} bxc4 {[%emt 0:00:29]} 51. Bc3 {[%emt 0:00:51]} Rd8 {[%emt 0:02:58]} 52. Nc1 {[%emt 0:00:18]} f6 {[%emt 0:02:19]} 53. a4 {[%emt 0:00:51]} Kf7 {[%emt 0:00:16]} 54. a5 {[%emt 0:00:13]} Bf8 {[%emt 0:00:23]} 55. Na2 {[%emt 0:00:47]} e4 {[%emt 0:01:22]} 56. Kg1 {[%emt 0:01:08]} Bf3 {[%emt 0:00:44]} 57. Bb4 {[%emt 0:00:18]} Bxb4 {[%emt 0:01:30]} 58. Nxb4 {[%emt 0:00:01]} Rd2 {[%emt 0:00:06]} 59. Rf1 {[%emt 0:01:05]} h3 {[%emt 0:00:23]} 60. Rf2 {[%emt 0:00:12]} Rxf2 {[%emt 0:00:08]} 0-1

[Event "22nd ETCC Women 2019"]
[Site "Batumi"]
[Date "2019.10.26"]
[Round "3.3"]
[White "Norlamo, Sarabella"]
[Black "Velikic, Adela"]
[Result "0-1"]
[ECO "D20"]
[WhiteElo "2020"]
[BlackElo "2275"]
[Annotator "NA"]
[PlyCount "118"]
[EventDate "2019.10.24"]
[EventType "team-tourn"]
[EventCountry "GEO"]
[SourceTitle "playchess.com"]
[Source "ChessBase"]
[SourceQuality "1"]
[WhiteTeam "Finland"]
[BlackTeam "Serbia"]
[WhiteTeamCountry "FIN"]
[BlackTeamCountry "SRB"]
[TimeControl "40/5400+30:1800+30"]

1. d4 {[%emt 0:00:00]} d5 {[%emt 0:00:00]} 2. c4 {[%emt 0:00:00]} dxc4 {[%emt 0:00:00]} 3. e3 {[%emt 0:00:00]} Nf6 {[%emt 0:00:00]} 4. Bxc4 {[%emt 0:00:10]} e6 {[%emt 0:00:10]} 5. Nf3 {[%emt 0:00:46]} a6 {[%emt 0:00:14]} 6. O-O {[%emt 0:01:25]} c5 {[%emt 0:00:10]} 7. dxc5 {[%emt 0:03:13]} Qxd1 {[%emt 0:00:23]} 8. Rxd1 {[%emt 0:00:03]} Bxc5 {[%emt 0:00:07]} 9. b3 {[%emt 0:02:59]} O-O {[%emt 0:00:57]} 10. Ba3 {[%emt 0:07:28]} Nbd7 {[%emt 0:08:03]} 11. Bxc5 {[%emt 0:01:44]} Nxc5 {[%emt 0:00:06]} 12. Nc3 {[%emt 0:07:40]} b5 {[%emt 0:04:27]} 13. Bf1 {[%emt 0:07:51]} Bb7 {[%emt 0:02:18]} 14. b4 {[%emt 0:06:10]} Nce4 {[%emt 0:09:00]} 15. Nxe4 {[%emt 0:05:32]} Bxe4 {[%emt 0:00:46]} 16. Bd3 {[%emt 0:04:34]} Bxd3 {[%emt 0:06:35]} 17. Rxd3 {[%emt 0:00:08]} Nd5 {[%emt 0:01:50]} 18. a3 {[%emt 0:01:10]} a5 {[%emt 0:11:47]} 19. bxa5 {[%emt 0:13:21]} Rxa5 {[%emt 0:02:15]} 20. Rb1 {[%emt 0:00:01]} Rc8 {[%emt 0:02:54]} 21. h3 {[%emt 0:05:07]} Nc3 {[%emt 0:18:57]} 22. Rb3 {[%emt 0:03:37]} Ne4 {[%emt 0:00:25]} 23. Rd1 {[%emt 0:03:48]} Kf8 {[%emt 0:06:20]} 24. Nd4 {[%emt 0:02:56]} Rc5 {[%emt 0:05:44]} 25. Rbd3 {[%emt 0:07:29]} Rc3 {[%emt 0:05:33]} 26. f3 {[%emt 0:03:09]} Raxa3 {[%emt 0:05:12]} 27. Nxe6+ {[%emt 0:02:03]} Ke7 {[%emt 0:05:58]} 28. Rd7+ {[%emt 0:00:01]} Kxe6 {[%emt 0:00:08]} 29. fxe4 {[%emt 0:00:17]} Rc1 {[%emt 0:02:06]} 30. Kf2 {[%emt 0:04:06]} Rxd1 {[%emt 0:00:31]} 31. Rxd1 {[%emt 0:00:03]} Ra2+ {[%emt 0:00:32]} 32. Kf3 {[%emt 0:00:48]} Rb2 {[%emt 0:01:05]} 33. Rd8 {[%emt 0:03:57]} b4 {[%emt 0:00:19]} 34. Rb8 {[%emt 0:00:01]} b3 {[%emt 0:01:16]} 35. Rb7 {[%emt 0:02:31]} g6 {[%emt 0:00:47]} 36. Rb6+ {[%emt 0:01:15]} Kd7 {[%emt 0:00:09]} 37. Rb7+ {[%emt 0:00:16]} Kc6 {[%emt 0:00:41]} 38. Rb8 {[%emt 0:01:40]} Kc5 {[%emt 0:00:32]} 39. Rc8+ {[%emt 0:00:36]} Kb4 {[%emt 0:00:13]} 40. Rb8+ {[%emt 0:00:00]} Kc3 {[%emt 0:00:00]} 41. Rb7 {[%emt 0:03:52]} Rd2 {[%emt 0:13:03]} 42. Rc7+ {[%emt 0:04:32]} Kd3 {[%emt 0:00:20]} 43. Rxf7 {[%emt 0:03:35]} b2 {[%emt 0:03:47]} 44. Rb7 {[%emt 0:01:16]} Kc2 {[%emt 0:00:11]} 45. e5 {[%emt 0:00:40]} b1=Q {[%emt 0:01:18]} 46. Rxb1 {[%emt 0:00:07]} Kxb1 {[%emt 0:00:03]} 47. Ke4 {[%emt 0:03:32]} Kc2 {[%emt 0:00:25]} 48. e6 {[%emt 0:02:20]} Rd8 {[%emt 0:05:42]} 49. g4 {[%emt 0:09:10]} Kd2 {[%emt 0:01:22]} 50. Ke5 {[%emt 0:01:48]} Kxe3 {[%emt 0:01:05]} 51. e7 {[%emt 0:00:01]} Ra8 {[%emt 0:01:20]} 52. Kf6 {[%emt 0:02:25]} Kf4 {[%emt 0:00:33]} 53. Kg7 {[%emt 0:01:24]} g5 {[%emt 0:01:12]} 54. Kf6 {[%emt 0:00:52]} h6 {[%emt 0:01:18]} 55. Kg6 {[%emt 0:00:31]} Re8 {[%emt 0:01:46]} 56. Kf7 {[%emt 0:00:08]} Rxe7+ {[%emt 0:00:21]} 57. Kxe7 {[%emt 0:00:01]} Kg3 {[%emt 0:00:07]} 58. Kf6 {[%emt 0:00:09]} Kxh3 {[%emt 0:00:06]} 59. Kf5 {[%emt 0:00:12]} Kh4 {[%emt 0:00:11]} 0-1

[Event "22nd ETCC Women 2019"]
[Site "Batumi"]
[Date "2019.10.26"]
[Round "3.4"]
[White "Kashlinskaya, Alina"]
[Black "Calzetta Ruiz, Monica"]
[Result "0-1"]
[ECO "A58"]
[WhiteElo "2481"]
[BlackElo "2251"]
[Annotator "ChessBase"]
[PlyCount "90"]
[EventDate "2019.10.24"]
[EventType "team-tourn"]
[EventCountry "GEO"]
[SourceTitle "playchess.com"]
[Source "ChessBase"]
[SourceQuality "1"]
[WhiteTeam "Russia"]
[BlackTeam "Spain"]
[WhiteTeamCountry "RUS"]
[BlackTeamCountry "ESP"]
[TimeControl "40/5400+30:1800+30"]

1. d4 {[%emt 0:00:00]} Nf6 {[%emt 0:00:00]} 2. c4 {[%emt 0:00:00]} c5 {[%emt 0:00:00]} 3. d5 {[%emt 0:00:00]} b5 {[%emt 0:00:00]} 4. cxb5 {[%emt 0:00:00]} a6 {[%emt 0:00:00]} 5. bxa6 {[%emt 0:00:00]} e6 {[%emt 0:00:06]} 6. Nc3 {[%emt 0:00:11]} exd5 {[%emt 0:00:06]} 7. Nxd5 {[%emt 0:00:12]} Be7 {[%emt 0:00:11]} 8. Nxe7 {[%emt 0:00:27]} Qxe7 {[%emt 0:00:08]} 9. e3 {[%emt 0:00:16]} O-O {[%emt 0:00:33]} 10. Nf3 {[%emt 0:00:16]} Ne4 {[%emt 0:04:01]} 11. Bd2 {[%emt 0:17:17]} d5 {[%emt 0:01:23]} 12. Be2 {[%emt 0:04:00]} Bxa6 {[%emt 0:05:04]} 13. Bxa6 {[%emt 0:09:23]} Rxa6 {[%emt 0:00:42]} 14. O-O {[%emt 0:00:32]} Nd7 {[%emt 0:08:46]} 15. Bc3 {[%emt 0:08:37]} Nxc3 {[%emt 0:07:41]} 16. bxc3 {[%emt 0:00:06]} Nf6 {[%emt 0:00:06]} 17. Qc2 {[%emt 0:04:45]} Rfa8 {[%emt 0:09:12]} 18. Rfd1 {[%emt 0:01:49]} Ra4 {[%emt 0:05:51]} 19. h3 {[%emt 0:04:03]} g6 {[%emt 0:03:25]} 20. Qb2 {[%emt 0:04:47]} Qe6 {[%emt 0:04:56]} 21. Nd2 {[%emt 0:06:22]} Qa6 {[%emt 0:03:04]} 22. Nb3 {[%emt 0:07:49]} Qc4 {[%emt 0:03:53]} 23. Qd2 {[%emt 0:04:43]} Ra3 {[%emt 0:08:29]} 24. Rdc1 {[%emt 0:03:13]} Ne4 {[%emt 0:02:06]} 25. Qb2 {[%emt 0:01:03]} Qb5 {[%emt 0:10:04]} 26. Qc2 {[%emt 0:01:02]} c4 {[%emt 0:01:05]} 27. Nd4 {[%emt 0:00:33]} Qa6 {[%emt 0:00:23]} 28. Ne2 {[%emt 0:02:37]} Qf6 {[%emt 0:06:26]} 29. Nf4 {[%emt 0:07:16]} Nxc3 {[%emt 0:01:15]} 30. Qd2 {[%emt 0:00:04]} Qe5 {[%emt 0:04:10]} 31. Qb2 {[%emt 0:02:03]} d4 {[%emt 0:01:26]} 32. exd4 {[%emt 0:00:36]} Qxd4 {[%emt 0:03:17]} 33. Nd5 {[%emt 0:03:47]} Rxa2 {[%emt 0:03:30]} 34. Rxa2 {[%emt 0:03:52]} Rxa2 {[%emt 0:00:04]} 35. Ne7+ {[%emt 0:00:05]} Kf8 {[%emt 0:00:09]} 36. Nc6 {[%emt 0:00:19]} Qc5 {[%emt 0:00:34]} 37. Qb8+ {[%emt 0:01:42]} Kg7 {[%emt 0:00:07]} 38. Kh1 {[%emt 0:02:32]} Ne2 {[%emt 0:01:04]} 39. Rd1 {[%emt 0:02:21]} Qxc6 {[%emt 0:02:11]} 40. Rd8 {[%emt 0:00:00]} Qc5 {[%emt 0:00:00]} 41. Rh8 {[%emt 0:04:39]} Qd4 {[%emt 0:11:30]} 42. Kh2 {[%emt 0:15:33]} Qf4+ {[%emt 0:00:44]} 43. Qxf4 {[%emt 0:00:06]} Nxf4 {[%emt 0:00:06]} 44. Rc8 {[%emt 0:00:24]} Rc2 {[%emt 0:02:50]} 45. Kg3 {[%emt 0:00:15]} Nd3 {[%emt 0:01:23]} 0-1